{"text_format":"1","workbook":"xlsx","n_sheets":1,"sheets":["Rutinekontroll av volumuts."],"not_rendered":{"charts":2,"images":0,"macros":1,"external_links":0,"defined_names":4,"comments":1,"pivot_tables":0},"unopened":[],"bounds":{"document_bytes":16777216,"sheet_cells":100000,"rows_first":2000,"rows_last":500,"rows_between":2000,"halvings":0,"cell_chars":16384,"cell_head_chars":4096},"cells_cut":0,"cells_raw":0,"read":"whole","date_system":"1900"}

{"sheet":"Rutinekontroll av volumuts.","index":0,"n_rows":60,"n_cols":15,"rows_kept":60,"cut":false,"hidden":false,"merged":[[60,1,69,13],[0,0,0,2],[1,0,1,4],[9,1,9,4],[2,1,2,4],[2,9,2,12],[9,9,9,12],[59,1,59,4]]}
["EQSDocument 17869 v. 1.3"]
["Dette er en mal som er beregnet til endring/tilpasning til den enkelte instrumentansvarliges behov. Flere instrument kan med fordel legges i samme regneark."]
[null,"Volumkontroll\n(Rutinekontroll)",null,null,null,null,null,null,null,"Volumkontroll\n(Rutinekontroll)"]
[null,null,"Instrumentnr:",null,null,null,null,null,null,null,"Instrumentnr:"]
[null,null,"Innstilt volum:",null,"mL",null,null,null,null,null,"Innstilt volum:",null,"mL"]
[null,null,"Våre krav",null,null,null,null,null,null,null,"Våre krav"]
[null,null,"Nøyaktighetkrav",2.5,"%",null,null,null,null,null,"Nøyaktighetkrav",2.5,"%"]
[null,null,"Nøyaktighet ±",{"$f":"IF(AND(D5<>\"\",D7<>\"\"),D5*D7/100,\"\")","v":""},{"$f":"E5","v":"mL"},null,null,null,null,null,"Nøyaktighet ±",{"$f":"IF(AND(L5<>\"\",L7<>\"\"),L5*L7/100,\"\")","v":""},{"$f":"M5","v":"mL"}]
[null,null,"CVkrav",1.5,"%",null,null,null,null,null,"CVkrav",1.5,"%"]
[null,"Målinger",null,null,null,null,null,null,null,"Målinger"]
[null,"Sign:","Dato:","Målt Verdi (g)","Vurdering","Lav grense","Høy grense",null,null,"Sign:","Dato:","Målt Verdi (g)","Vurdering","Lav grense","Høy grense"]
[1,null,null,null,{"$f":"IF(D12<>\"\",IF(OR(D12<($D$5-$D$8),D12>($D$5+$D$8)),\"Ikke Ok\", \"Ok\"),\"\")","v":""},{"$f":"$D$5-$D$8","v":{"$error":"#VALUE!"}},{"$f":"$D$5+$D$8","v":{"$error":"#VALUE!"}},null,1,null,null,null,{"$f":"IF(L12<>\"\",IF(OR(L12<($L$5-$L$8),L12>($L$5+$L$8)),\"Ikke Ok\", \"Ok\"),\"\")","v":""},{"$f":"$L$5-$L$8","v":{"$error":"#VALUE!"}},{"$f":"$L$5+$L$8","v":{"$error":"#VALUE!"}}]
[2,null,null,null,{"$f":"IF(D13<>\"\",IF(OR(D13<($D$5-$D$8),D13>($D$5+$D$8)),\"Ikke Ok\", \"Ok\"),\"\")","v":""},{"$f":"$D$5-$D$8","v":{"$error":"#VALUE!"}},{"$f":"$D$5+$D$8","v":{"$error":"#VALUE!"}},null,2,null,null,null,{"$f":"IF(L13<>\"\",IF(OR(L13<($L$5-$L$8),L13>($L$5+$L$8)),\"Ikke Ok\", \"Ok\"),\"\")","v":""},{"$f":"$L$5-$L$8","v":{"$error":"#VALUE!"}},{"$f":"$L$5+$L$8","v":{"$error":"#VALUE!"}}]
[3,null,null,null,"",{"$error":"#VALUE!"},{"$error":"#VALUE!"},null,3,null,null,null,"",{"$error":"#VALUE!"},{"$error":"#VALUE!"}]
[4,null,null,null,"",{"$error":"#VALUE!"},{"$error":"#VALUE!"},null,4,null,null,null,"",{"$error":"#VALUE!"},{"$error":"#VALUE!"}]
[5,null,null,null,"",{"$error":"#VALUE!"},{"$error":"#VALUE!"},null,5,null,null,null,"",{"$error":"#VALUE!"},{"$error":"#VALUE!"}]
[6,null,null,null,"",{"$error":"#VALUE!"},{"$error":"#VALUE!"},null,6,null,null,null,"",{"$error":"#VALUE!"},{"$error":"#VALUE!"}]
[7,null,null,null,"",{"$error":"#VALUE!"},{"$error":"#VALUE!"},null,7,null,null,null,"",{"$error":"#VALUE!"},{"$error":"#VALUE!"}]
[8,null,null,null,"",{"$error":"#VALUE!"},{"$error":"#VALUE!"},null,8,null,null,null,"",{"$error":"#VALUE!"},{"$error":"#VALUE!"}]
[9,null,null,null,"",{"$error":"#VALUE!"},{"$error":"#VALUE!"},null,9,null,null,null,"",{"$error":"#VALUE!"},{"$error":"#VALUE!"}]
[10,null,null,null,"",{"$error":"#VALUE!"},{"$error":"#VALUE!"},null,10,null,null,null,"",{"$error":"#VALUE!"},{"$error":"#VALUE!"}]
[11,null,null,null,"",{"$error":"#VALUE!"},{"$error":"#VALUE!"},null,11,null,null,null,"",{"$error":"#VALUE!"},{"$error":"#VALUE!"}]
[12,null,null,null,"",{"$error":"#VALUE!"},{"$error":"#VALUE!"},null,12,null,null,null,"",{"$error":"#VALUE!"},{"$error":"#VALUE!"}]
[13,null,null,null,"",{"$error":"#VALUE!"},{"$error":"#VALUE!"},null,13,null,null,null,"",{"$error":"#VALUE!"},{"$error":"#VALUE!"}]
[14,null,null,null,"",{"$error":"#VALUE!"},{"$error":"#VALUE!"},null,14,null,null,null,"",{"$error":"#VALUE!"},{"$error":"#VALUE!"}]
[15,null,null,null,"",{"$error":"#VALUE!"},{"$error":"#VALUE!"},null,15,null,null,null,"",{"$error":"#VALUE!"},{"$error":"#VALUE!"}]
[16,null,null,null,"",{"$error":"#VALUE!"},{"$error":"#VALUE!"},null,16,null,null,null,"",{"$error":"#VALUE!"},{"$error":"#VALUE!"}]
[17,null,null,null,"",{"$error":"#VALUE!"},{"$error":"#VALUE!"},null,17,null,null,null,"",{"$error":"#VALUE!"},{"$error":"#VALUE!"}]
[18,null,null,null,"",{"$error":"#VALUE!"},{"$error":"#VALUE!"},null,18,null,null,null,"",{"$error":"#VALUE!"},{"$error":"#VALUE!"}]
[19,null,null,null,"",{"$error":"#VALUE!"},{"$error":"#VALUE!"},null,19,null,null,null,"",{"$error":"#VALUE!"},{"$error":"#VALUE!"}]
[20,null,null,null,"",{"$error":"#VALUE!"},{"$error":"#VALUE!"},null,20,null,null,null,"",{"$error":"#VALUE!"},{"$error":"#VALUE!"}]
[21,null,null,null,"",{"$error":"#VALUE!"},{"$error":"#VALUE!"},null,21,null,null,null,"",{"$error":"#VALUE!"},{"$error":"#VALUE!"}]
[22,null,null,null,"",{"$error":"#VALUE!"},{"$error":"#VALUE!"},null,22,null,null,null,"",{"$error":"#VALUE!"},{"$error":"#VALUE!"}]
[23,null,null,null,"",{"$error":"#VALUE!"},{"$error":"#VALUE!"},null,23,null,null,null,"",{"$error":"#VALUE!"},{"$error":"#VALUE!"}]
[24,null,null,null,"",{"$error":"#VALUE!"},{"$error":"#VALUE!"},null,24,null,null,null,"",{"$error":"#VALUE!"},{"$error":"#VALUE!"}]
[25,null,null,null,"",{"$error":"#VALUE!"},{"$error":"#VALUE!"},null,25,null,null,null,"",{"$error":"#VALUE!"},{"$error":"#VALUE!"}]
[26,null,null,null,"",{"$error":"#VALUE!"},{"$error":"#VALUE!"},null,26,null,null,null,"",{"$error":"#VALUE!"},{"$error":"#VALUE!"}]
[27,null,null,null,"",{"$error":"#VALUE!"},{"$error":"#VALUE!"},null,27,null,null,null,"",{"$error":"#VALUE!"},{"$error":"#VALUE!"}]
[28,null,null,null,"",{"$error":"#VALUE!"},{"$error":"#VALUE!"},null,28,null,null,null,"",{"$error":"#VALUE!"},{"$error":"#VALUE!"}]
[29,null,null,null,"",{"$error":"#VALUE!"},{"$error":"#VALUE!"},null,29,null,null,null,"",{"$error":"#VALUE!"},{"$error":"#VALUE!"}]
[30,null,null,null,"",{"$error":"#VALUE!"},{"$error":"#VALUE!"},null,30,null,null,null,"",{"$error":"#VALUE!"},{"$error":"#VALUE!"}]
[31,null,null,null,"",{"$error":"#VALUE!"},{"$error":"#VALUE!"},null,31,null,null,null,"",{"$error":"#VALUE!"},{"$error":"#VALUE!"}]
[]
[]
[]
[]
[]
[]
[]
[]
[]
[]
[]
[]
[]
[]
[]
[]
[]
[null,"Kommentarer/konklusjon: (husk dato/sign)"]